[Event "Titled Tuesday Blitz February 07 Late 2023"]
[White "Ramirez, Alejandro"]
[Black "So, Wesley"]
[WhiteFideId "6500617"]
[BlackFideId "5202213"]
[WhiteElo "2572"]
[BlackElo "2760"]
[Result "0-1"]
[Round "03"]
[TimeControl "180+2"]
[Date "2023.02.07"]
[WhiteClock "0:00:04"]
[BlackClock "0:00:16"]

1. Nf3 {[%clk 0:03:00]}  c5 {[%clk 0:02:59]} 2. c4 {[%clk 0:03:00]}  Nf6 {[%clk 0:02:58]} 3. g3 {[%clk 0:03:00]}  d5 {[%clk 0:02:51]} 4. cxd5 {[%clk 0:02:59]}  Nxd5 {[%clk 0:02:52]} 5. d4 {[%clk 0:02:59]}  cxd4 {[%clk 0:02:51]} 6. Nxd4 {[%clk 0:02:56]}  e5 {[%clk 0:02:49]} 7. Nc2 {[%clk 0:02:52]}  Nc6 {[%clk 0:02:45]} 8. Bg2 {[%clk 0:02:53]}  Be6 {[%clk 0:02:38]} 9. O-O {[%clk 0:02:50]}  Be7 {[%clk 0:02:26]} 10. Ne3 {[%clk 0:02:45]}  Nf6 {[%clk 0:01:50]} 11. Nc3 {[%clk 0:02:45]}  O-O {[%clk 0:01:50]} 12. Qa4 {[%clk 0:02:39]}  Nd4 {[%clk 0:01:46]} 13. Bxb7 {[%clk 0:02:35]}  Rb8 {[%clk 0:01:46]} 14. Bg2 {[%clk 0:02:35]}  Qc7 {[%clk 0:01:40]} 15. Ned5 {[%clk 0:02:20]}  Nxe2+ {[%clk 0:01:37]} 16. Kh1 {[%clk 0:02:18]}  Nxc3 {[%clk 0:01:31]} 17. Nxe7+ {[%clk 0:02:11]}  Qxe7 {[%clk 0:01:30]} 18. bxc3 {[%clk 0:02:11]}  Rfc8 {[%clk 0:01:18]} 19. Be3 {[%clk 0:02:11]}  Rc7 {[%clk 0:01:14]} 20. Rab1 {[%clk 0:01:52]}  Rbc8 {[%clk 0:01:14]} 21. Kg1 {[%clk 0:01:36]}  h6 {[%clk 0:01:08]} 22. h3 {[%clk 0:01:31]}  Nd5 {[%clk 0:01:08]} 23. Bd2 {[%clk 0:00:53]}  Nxc3 {[%clk 0:01:07]} 24. Bxc3 {[%clk 0:00:54]}  Rxc3 {[%clk 0:01:08]} 25. Rb7 {[%clk 0:00:54]}  R3c7 {[%clk 0:01:09]} 26. Qxa7 {[%clk 0:00:53]}  Bxh3 {[%clk 0:01:00]} 27. Rxc7 {[%clk 0:00:29]}  Rxc7 {[%clk 0:01:01]} 28. Qb8+ {[%clk 0:00:30]}  Rc8 {[%clk 0:01:01]} 29. Qb6 {[%clk 0:00:26]}  Bxg2 {[%clk 0:01:00]} 30. Kxg2 {[%clk 0:00:27]}  Ra8 {[%clk 0:00:57]} 31. Re1 {[%clk 0:00:26]}  f6 {[%clk 0:00:56]} 32. Re2 {[%clk 0:00:24]}  Qa7 {[%clk 0:00:54]} 33. Qb3+ {[%clk 0:00:23]}  Qf7 {[%clk 0:00:53]} 34. Qb1 {[%clk 0:00:21]}  Qd5+ {[%clk 0:00:52]} 35. Kh2 {[%clk 0:00:21]}  Kf7 {[%clk 0:00:40]} 36. Rb2 {[%clk 0:00:22]}  Ra7 {[%clk 0:00:40]} 37. a4 {[%clk 0:00:19]}  h5 {[%clk 0:00:33]} 38. a5 {[%clk 0:00:14]}  Qxa5 {[%clk 0:00:30]} 39. Qf5 {[%clk 0:00:13]}  g6 {[%clk 0:00:30]} 40. Qc8 {[%clk 0:00:12]}  Qc7 {[%clk 0:00:24]} 41. Qh8 {[%clk 0:00:12]}  Ke6 {[%clk 0:00:24]} 42. Qg8+ {[%clk 0:00:11]}  Kf5 {[%clk 0:00:23]} 43. f3 {[%clk 0:00:10]}  Kg5 {[%clk 0:00:20]} 44. Rf2 {[%clk 0:00:05]}  Qg7 {[%clk 0:00:18]} 45. f4+ {[%clk 0:00:05]}  exf4 {[%clk 0:00:18]} 46. gxf4+ {[%clk 0:00:06]}  Kh6 {[%clk 0:00:19]} 47. Qb8 {[%clk 0:00:07]}  Rb7 {[%clk 0:00:18]} 48. Qc8 {[%clk 0:00:07]}  Kh7 {[%clk 0:00:17]} 49. Rg2 {[%clk 0:00:05]}  Qd7 {[%clk 0:00:16]} 50. Qf8 {[%clk 0:00:04]}  Qe7 {[%clk 0:00:17]} 51. Qc8 {[%clk 0:00:04]}  Qc7 {[%clk 0:00:17]} 52. Qf8 {[%clk 0:00:05]}  Qxf4+ {[%clk 0:00:17]} 53. Kg1 {[%clk 0:00:04]}  Rb1# {[%clk 0:00:16]} 0-1


[Site "https://www.chess.com"]

[Event "Titled Tuesday Blitz February 07 Late 2023"]
[White "Naroditsky, Daniel"]
[Black "Pakleza, Zbigniew"]
[WhiteFideId "2026961"]
[BlackFideId "1119290"]
[WhiteElo "2618"]
[BlackElo "2494"]
[Result "1-0"]
[Round "03"]
[TimeControl "180+2"]
[Date "2023.02.07"]
[WhiteClock "0:00:33"]
[BlackClock "0:00:06"]

1. e4 {[%clk 0:02:56]}  d6 {[%clk 0:02:59]} 2. Nc3 {[%clk 0:02:55]}  Nf6 {[%clk 0:03:00]} 3. Bc4 {[%clk 0:02:53]}  c6 {[%clk 0:03:00]} 4. Nf3 {[%clk 0:02:52]}  d5 {[%clk 0:02:59]} 5. exd5 {[%clk 0:02:51]}  cxd5 {[%clk 0:03:00]} 6. Bb5+ {[%clk 0:02:52]}  Nc6 {[%clk 0:03:01]} 7. Ne5 {[%clk 0:02:50]}  Qb6 {[%clk 0:02:52]} 8. O-O {[%clk 0:02:47]}  a6 {[%clk 0:02:48]} 9. Ba4 {[%clk 0:02:42]}  e6 {[%clk 0:02:26]} 10. d4 {[%clk 0:02:42]}  Be7 {[%clk 0:02:24]} 11. Ne2 {[%clk 0:02:31]}  O-O {[%clk 0:02:21]} 12. c4 {[%clk 0:02:26]}  Nxe5 {[%clk 0:02:12]} 13. dxe5 {[%clk 0:02:26]}  Nd7 {[%clk 0:02:12]} 14. cxd5 {[%clk 0:02:13]}  Nxe5 {[%clk 0:02:08]} 15. Be3 {[%clk 0:02:14]}  Qd8 {[%clk 0:01:48]} 16. Bb3 {[%clk 0:02:08]}  exd5 {[%clk 0:01:42]} 17. Qxd5 {[%clk 0:02:04]}  Qxd5 {[%clk 0:01:20]} 18. Bxd5 {[%clk 0:02:05]}  Rd8 {[%clk 0:00:53]} 19. Rfd1 {[%clk 0:01:56]}  Nc6 {[%clk 0:00:37]} 20. Bb6 {[%clk 0:01:41]}  Re8 {[%clk 0:00:36]} 21. Rac1 {[%clk 0:01:25]}  Bf6 {[%clk 0:00:26]} 22. Nd4 {[%clk 0:01:13]}  Nb4 {[%clk 0:00:18]} 23. Bb3 {[%clk 0:01:04]}  Bg4 {[%clk 0:00:15]} 24. f3 {[%clk 0:01:04]}  Bd7 {[%clk 0:00:15]} 25. Rc7 {[%clk 0:01:03]}  Be6 {[%clk 0:00:10]} 26. Nxe6 {[%clk 0:01:01]}  fxe6 {[%clk 0:00:11]} 27. Rxb7 {[%clk 0:00:53]}  Nd5 {[%clk 0:00:09]} 28. Bd4 {[%clk 0:00:40]}  Bxd4+ {[%clk 0:00:08]} 29. Rxd4 {[%clk 0:00:40]}  Rad8 {[%clk 0:00:08]} 30. Ra7 {[%clk 0:00:40]}  Rd6 {[%clk 0:00:07]} 31. Bc4 {[%clk 0:00:37]}  Rb8 {[%clk 0:00:05]} 32. b3 {[%clk 0:00:35]}  Rbb6 {[%clk 0:00:05]} 33. Kf2 {[%clk 0:00:34]}  h6 {[%clk 0:00:05]} 34. h4 {[%clk 0:00:34]}  Kh7 {[%clk 0:00:06]} 35. Rg4 {[%clk 0:00:33]} 1-0


[Site "https://www.chess.com"]

[Event "Titled Tuesday Blitz February 07 Late 2023"]
[White "Mikaelyan, Arman"]
[Black "Dubov, Daniil"]
[WhiteFideId "13304852"]
[BlackFideId "24126055"]
[WhiteElo "2523"]
[BlackElo "2708"]
[Result "0-1"]
[Round "03"]
[TimeControl "180+2"]
[Date "2023.02.07"]
[WhiteClock "0:00:02"]
[BlackClock "0:00:17"]

1. d4 {[%clk 0:03:00]}  Nf6 {[%clk 0:02:57]} 2. c4 {[%clk 0:03:01]}  g6 {[%clk 0:02:56]} 3. Nc3 {[%clk 0:03:01]}  Bg7 {[%clk 0:02:56]} 4. e4 {[%clk 0:03:01]}  d6 {[%clk 0:02:57]} 5. f4 {[%clk 0:03:02]}  Nc6 {[%clk 0:02:54]} 6. Nf3 {[%clk 0:02:58]}  Bg4 {[%clk 0:02:53]} 7. Be2 {[%clk 0:02:45]}  e5 {[%clk 0:02:42]} 8. fxe5 {[%clk 0:02:41]}  dxe5 {[%clk 0:02:41]} 9. d5 {[%clk 0:02:41]}  Nd4 {[%clk 0:02:28]} 10. O-O {[%clk 0:02:22]}  O-O {[%clk 0:02:21]} 11. Bg5 {[%clk 0:02:04]}  Qd6 {[%clk 0:01:47]} 12. Kh1 {[%clk 0:01:50]}  Bxf3 {[%clk 0:01:41]} 13. Bxf3 {[%clk 0:01:50]}  Nd7 {[%clk 0:01:40]} 14. Nb5 {[%clk 0:01:33]}  Qb6 {[%clk 0:01:25]} 15. Nxd4 {[%clk 0:01:20]}  exd4 {[%clk 0:01:24]} 16. Qd2 {[%clk 0:01:20]}  a5 {[%clk 0:01:09]} 17. Rac1 {[%clk 0:01:16]}  Rae8 {[%clk 0:01:04]} 18. Rfe1 {[%clk 0:00:59]}  Be5 {[%clk 0:00:49]} 19. Bh6 {[%clk 0:00:58]}  Nc5 {[%clk 0:00:49]} 20. Bxf8 {[%clk 0:00:55]}  Rxf8 {[%clk 0:00:50]} 21. Red1 {[%clk 0:00:49]}  Re8 {[%clk 0:00:45]} 22. b3 {[%clk 0:00:49]}  Qd6 {[%clk 0:00:41]} 23. g3 {[%clk 0:00:46]}  b6 {[%clk 0:00:39]} 24. Bg2 {[%clk 0:00:41]}  Kg7 {[%clk 0:00:36]} 25. Rf1 {[%clk 0:00:40]}  h5 {[%clk 0:00:34]} 26. Qg5 {[%clk 0:00:29]}  f6 {[%clk 0:00:33]} 27. Qd2 {[%clk 0:00:21]}  Rh8 {[%clk 0:00:31]} 28. Rf3 {[%clk 0:00:19]}  h4 {[%clk 0:00:30]} 29. g4 {[%clk 0:00:20]}  Nxe4 {[%clk 0:00:26]} 30. Qe2 {[%clk 0:00:18]}  Ng5 {[%clk 0:00:26]} 31. Rd3 {[%clk 0:00:17]}  Bxh2 {[%clk 0:00:23]} 32. Rxd4 {[%clk 0:00:13]}  h3 {[%clk 0:00:21]} 33. Bf1 {[%clk 0:00:12]}  Be5 {[%clk 0:00:21]} 34. Rd3 {[%clk 0:00:12]}  Rh4 {[%clk 0:00:20]} 35. Re1 {[%clk 0:00:12]}  Qc5 {[%clk 0:00:18]} 36. Re3 {[%clk 0:00:11]}  Qd4 {[%clk 0:00:18]} 37. Rxe5 {[%clk 0:00:04]}  fxe5 {[%clk 0:00:18]} 38. Qxe5+ {[%clk 0:00:05]}  Qxe5 {[%clk 0:00:18]} 39. Rxe5 {[%clk 0:00:06]}  Rxg4 {[%clk 0:00:18]} 40. Re7+ {[%clk 0:00:07]}  Kf6 {[%clk 0:00:17]} 41. Re3 {[%clk 0:00:05]}  Re4 {[%clk 0:00:14]} 42. Rxe4 {[%clk 0:00:04]}  Nxe4 {[%clk 0:00:14]} 43. Kh2 {[%clk 0:00:04]}  Ke5 {[%clk 0:00:14]} 44. Bxh3 {[%clk 0:00:04]}  Nc3 {[%clk 0:00:14]} 45. a3 {[%clk 0:00:03]}  Nb1 {[%clk 0:00:14]} 46. Kg3 {[%clk 0:00:03]}  Nxa3 {[%clk 0:00:13]} 47. Kf2 {[%clk 0:00:03]}  Nc2 {[%clk 0:00:14]} 48. Ke2 {[%clk 0:00:01]}  Nd4+ {[%clk 0:00:14]} 49. Kd3 {[%clk 0:00:02]}  Nxb3 {[%clk 0:00:15]} 50. Bg2 {[%clk 0:00:01]}  Nc5+ {[%clk 0:00:16]} 51. Kc3 {[%clk 0:00:02]}  g5 {[%clk 0:00:16]} 52. Bf3 {[%clk 0:00:02]}  Kf4 {[%clk 0:00:16]} 53. Bh5 {[%clk 0:00:02]}  Ke3 {[%clk 0:00:16]} 54. Bg4 {[%clk 0:00:02]}  Ne4+ {[%clk 0:00:16]} 55. Kb3 {[%clk 0:00:02]}  Kd4 {[%clk 0:00:17]} 56. Bf3 {[%clk 0:00:02]} 0-1


[Site "https://www.chess.com"]

[Event "Titled Tuesday Blitz February 07 Late 2023"]
[White "Andreikin, Dmitry"]
[Black "Boros, Denes"]
[WhiteFideId "4158814"]
[BlackFideId "722340"]
[WhiteElo "2729"]
[BlackElo "2406"]
[Result "1-0"]
[Round "03"]
[TimeControl "180+2"]
[Date "2023.02.07"]
[WhiteClock "0:00:40"]
[BlackClock "0:00:10"]

1. c4 {[%clk 0:03:00]}  c5 {[%clk 0:02:56]} 2. Nc3 {[%clk 0:02:58]}  g6 {[%clk 0:02:56]} 3. g3 {[%clk 0:02:50]}  Bg7 {[%clk 0:02:56]} 4. Bg2 {[%clk 0:02:51]}  Nf6 {[%clk 0:02:52]} 5. Nf3 {[%clk 0:02:47]}  O-O {[%clk 0:02:50]} 6. d4 {[%clk 0:02:47]}  d6 {[%clk 0:02:42]} 7. O-O {[%clk 0:02:41]}  Nbd7 {[%clk 0:02:40]} 8. b3 {[%clk 0:02:39]}  a6 {[%clk 0:02:40]} 9. Bb2 {[%clk 0:02:39]}  Rb8 {[%clk 0:02:40]} 10. a4 {[%clk 0:02:38]}  cxd4 {[%clk 0:02:27]} 11. Nxd4 {[%clk 0:02:37]}  Qc7 {[%clk 0:02:28]} 12. e4 {[%clk 0:02:29]}  e6 {[%clk 0:02:19]} 13. Rc1 {[%clk 0:02:20]}  b6 {[%clk 0:02:17]} 14. Qe2 {[%clk 0:02:07]}  Bb7 {[%clk 0:02:17]} 15. Rfd1 {[%clk 0:02:07]}  Rfe8 {[%clk 0:02:14]} 16. Ndb5 {[%clk 0:02:06]}  axb5 {[%clk 0:02:14]} 17. Nxb5 {[%clk 0:02:06]}  Qc5 {[%clk 0:02:06]} 18. Nxd6 {[%clk 0:02:01]}  e5 {[%clk 0:01:47]} 19. Qd2 {[%clk 0:01:36]}  Nf8 {[%clk 0:01:35]} 20. b4 {[%clk 0:01:35]}  Qc7 {[%clk 0:01:31]} 21. Nxe8 {[%clk 0:01:30]}  Rxe8 {[%clk 0:01:30]} 22. c5 {[%clk 0:01:30]}  Nxe4 {[%clk 0:01:15]} 23. Qe3 {[%clk 0:01:27]}  Nf6 {[%clk 0:01:06]} 24. cxb6 {[%clk 0:01:26]}  Qb8 {[%clk 0:01:07]} 25. a5 {[%clk 0:01:19]}  Bxg2 {[%clk 0:01:04]} 26. Kxg2 {[%clk 0:01:19]}  Qa8+ {[%clk 0:00:55]} 27. Kg1 {[%clk 0:01:18]}  h5 {[%clk 0:00:49]} 28. Ra1 {[%clk 0:00:56]}  Ng4 {[%clk 0:00:44]} 29. Qe2 {[%clk 0:00:52]}  Qb7 {[%clk 0:00:30]} 30. Qb5 {[%clk 0:00:52]}  Re6 {[%clk 0:00:16]} 31. Qd5 {[%clk 0:00:52]}  Qe7 {[%clk 0:00:16]} 32. b7 {[%clk 0:00:48]}  Qxb4 {[%clk 0:00:16]} 33. Ba3 {[%clk 0:00:41]}  Qb3 {[%clk 0:00:10]} 34. Qxb3 {[%clk 0:00:40]} 1-0


[Site "https://www.chess.com"]

[Event "Titled Tuesday Blitz February 07 Late 2023"]
[White "Nogerbek, Kazybek"]
[Black "Fedoseev, Vladimir"]
[WhiteFideId "13710427"]
[BlackFideId "24130737"]
[WhiteElo "2474"]
[BlackElo "2680"]
[Result "0-1"]
[Round "03"]
[TimeControl "180+2"]
[Date "2023.02.07"]
[WhiteClock "0:01:21"]
[BlackClock "0:01:33"]

1. e4 {[%clk 0:02:54]}  c5 {[%clk 0:02:59]} 2. Nf3 {[%clk 0:02:54]}  e6 {[%clk 0:03:00]} 3. c3 {[%clk 0:02:54]}  Nf6 {[%clk 0:02:54]} 4. e5 {[%clk 0:02:54]}  Nd5 {[%clk 0:02:54]} 5. d4 {[%clk 0:02:54]}  cxd4 {[%clk 0:02:54]} 6. cxd4 {[%clk 0:02:55]}  d6 {[%clk 0:02:52]} 7. Bc4 {[%clk 0:02:56]}  Nc6 {[%clk 0:02:39]} 8. O-O {[%clk 0:02:53]}  Be7 {[%clk 0:02:37]} 9. Bd2 {[%clk 0:02:53]}  O-O {[%clk 0:02:31]} 10. Nc3 {[%clk 0:02:53]}  Nb6 {[%clk 0:02:12]} 11. Bb3 {[%clk 0:02:21]}  d5 {[%clk 0:02:06]} 12. Bc2 {[%clk 0:02:09]}  f5 {[%clk 0:02:06]} 13. exf6 {[%clk 0:02:08]}  gxf6 {[%clk 0:01:55]} 14. Re1 {[%clk 0:02:05]}  Rf7 {[%clk 0:01:53]} 15. Bd3 {[%clk 0:02:02]}  Bd6 {[%clk 0:01:48]} 16. Ne2 {[%clk 0:01:59]}  e5 {[%clk 0:01:46]} 17. dxe5 {[%clk 0:01:57]}  fxe5 {[%clk 0:01:45]} 18. Ng5 {[%clk 0:01:55]}  Rg7 {[%clk 0:01:45]} 19. Nxh7 {[%clk 0:01:21]}  e4 {[%clk 0:01:39]} 20. Bc3 {[%clk 0:01:21]}  Rxh7 {[%clk 0:01:33]} 0-1


[Site "https://www.chess.com"]

[Event "Titled Tuesday Blitz February 07 Late 2023"]
[White "Kollars, Dmitrij"]
[Black "Cabarkapa, Novak"]
[WhiteFideId "12909572"]
[BlackFideId "943746"]
[WhiteElo "2607"]
[BlackElo "2458"]
[Result "1-0"]
[Round "03"]
[TimeControl "180+2"]
[Date "2023.02.07"]
[WhiteClock "0:00:13"]
[BlackClock "0:00:08"]

1. e4 {[%clk 0:03:00]}  e6 {[%clk 0:02:58]} 2. d4 {[%clk 0:03:00]}  d5 {[%clk 0:02:59]} 3. Nd2 {[%clk 0:03:00]}  h6 {[%clk 0:02:57]} 4. Ngf3 {[%clk 0:03:00]}  Nf6 {[%clk 0:02:58]} 5. Bd3 {[%clk 0:02:59]}  c5 {[%clk 0:02:58]} 6. exd5 {[%clk 0:02:58]}  Nxd5 {[%clk 0:02:50]} 7. O-O {[%clk 0:02:57]}  Nc6 {[%clk 0:02:49]} 8. dxc5 {[%clk 0:02:52]}  Bxc5 {[%clk 0:02:48]} 9. a3 {[%clk 0:02:52]}  O-O {[%clk 0:02:27]} 10. Ne4 {[%clk 0:02:38]}  Be7 {[%clk 0:02:26]} 11. c4 {[%clk 0:02:35]}  Nf6 {[%clk 0:02:26]} 12. Qe2 {[%clk 0:02:34]}  Nxe4 {[%clk 0:02:17]} 13. Qxe4 {[%clk 0:02:35]}  f5 {[%clk 0:02:18]} 14. Qe2 {[%clk 0:02:26]}  Bf6 {[%clk 0:02:18]} 15. Be3 {[%clk 0:01:59]}  e5 {[%clk 0:02:10]} 16. Rad1 {[%clk 0:01:57]}  Qe7 {[%clk 0:02:00]} 17. Bb1 {[%clk 0:01:57]}  Be6 {[%clk 0:01:46]} 18. b4 {[%clk 0:01:55]}  b6 {[%clk 0:01:45]} 19. Rfe1 {[%clk 0:01:35]}  Rad8 {[%clk 0:01:45]} 20. c5 {[%clk 0:01:02]}  e4 {[%clk 0:01:34]} 21. Nd2 {[%clk 0:01:00]}  Nd4 {[%clk 0:01:32]} 22. Bxd4 {[%clk 0:00:59]}  Bxd4 {[%clk 0:01:31]} 23. cxb6 {[%clk 0:00:57]}  Bxb6 {[%clk 0:01:22]} 24. Nc4 {[%clk 0:00:53]}  Bd4 {[%clk 0:01:18]} 25. Na5 {[%clk 0:00:52]}  Qc7 {[%clk 0:01:10]} 26. Rc1 {[%clk 0:00:48]}  Qb6 {[%clk 0:01:00]} 27. Rc6 {[%clk 0:00:45]}  Qb8 {[%clk 0:00:40]} 28. Rxe6 {[%clk 0:00:43]}  Bc3 {[%clk 0:00:34]} 29. Nc6 {[%clk 0:00:41]}  Qf4 {[%clk 0:00:23]} 30. g3 {[%clk 0:00:36]}  Qg5 {[%clk 0:00:21]} 31. h4 {[%clk 0:00:35]}  Qd2 {[%clk 0:00:16]} 32. Nxd8 {[%clk 0:00:35]}  Qxe1+ {[%clk 0:00:16]} 33. Qxe1 {[%clk 0:00:35]}  Bxe1 {[%clk 0:00:16]} 34. Ba2 {[%clk 0:00:33]}  Kh7 {[%clk 0:00:15]} 35. Nc6 {[%clk 0:00:26]}  f4 {[%clk 0:00:11]} 36. Rxe4 {[%clk 0:00:21]}  fxg3 {[%clk 0:00:12]} 37. fxg3 {[%clk 0:00:22]}  Bxg3 {[%clk 0:00:12]} 38. Bb1 {[%clk 0:00:19]}  Kh8 {[%clk 0:00:11]} 39. Ne7 {[%clk 0:00:19]}  Rd8 {[%clk 0:00:11]} 40. Ng6+ {[%clk 0:00:18]}  Kh7 {[%clk 0:00:09]} 41. Rg4 {[%clk 0:00:14]}  Rd1+ {[%clk 0:00:08]} 42. Kg2 {[%clk 0:00:15]}  Rxb1 {[%clk 0:00:09]} 43. Rxg3 {[%clk 0:00:15]}  Rb2+ {[%clk 0:00:09]} 44. Kh3 {[%clk 0:00:15]}  a5 {[%clk 0:00:09]} 45. bxa5 {[%clk 0:00:14]}  Rb5 {[%clk 0:00:10]} 46. Nf8+ {[%clk 0:00:14]}  Kg8 {[%clk 0:00:09]} 47. Ne6 {[%clk 0:00:15]}  Rxa5 {[%clk 0:00:09]} 48. Rxg7+ {[%clk 0:00:15]}  Kh8 {[%clk 0:00:10]} 49. Rg3 {[%clk 0:00:16]}  h5 {[%clk 0:00:10]} 50. Nf4 {[%clk 0:00:15]}  Rf5 {[%clk 0:00:10]} 51. Ne6 {[%clk 0:00:14]}  Rf6 {[%clk 0:00:10]} 52. Ng5 {[%clk 0:00:13]}  Ra6 {[%clk 0:00:10]} 53. Rb3 {[%clk 0:00:13]}  Ra4 {[%clk 0:00:10]} 54. Nf3 {[%clk 0:00:13]}  Kh7 {[%clk 0:00:10]} 55. Nd2 {[%clk 0:00:14]}  Kg6 {[%clk 0:00:10]} 56. Nb1 {[%clk 0:00:14]}  Kf5 {[%clk 0:00:09]} 57. Nc3 {[%clk 0:00:13]}  Rd4 {[%clk 0:00:10]} 58. Nb5 {[%clk 0:00:12]}  Ra4 {[%clk 0:00:09]} 59. Rb4 {[%clk 0:00:13]}  Ra5 {[%clk 0:00:09]} 60. a4 {[%clk 0:00:13]}  Kg6 {[%clk 0:00:08]} 61. Nc3 {[%clk 0:00:14]}  Kf6 {[%clk 0:00:08]} 62. Rb6+ {[%clk 0:00:14]}  Kg7 {[%clk 0:00:08]} 63. Rb5 {[%clk 0:00:14]}  Ra6 {[%clk 0:00:08]} 64. Rxh5 {[%clk 0:00:14]}  Kg6 {[%clk 0:00:08]} 65. Rg5+ {[%clk 0:00:15]}  Kh6 {[%clk 0:00:08]} 66. Rb5 {[%clk 0:00:14]}  Rc6 {[%clk 0:00:09]} 67. Ne4 {[%clk 0:00:14]}  Rc4 {[%clk 0:00:09]} 68. Rb6+ {[%clk 0:00:13]}  Kh5 {[%clk 0:00:08]} 69. Ng3# {[%clk 0:00:13]} 1-0


[Site "https://www.chess.com"]

[Event "Titled Tuesday Blitz February 07 Late 2023"]
[White "Fernandez Guillen, Ernesto J."]
[Black "Bluebaum, Matthias"]
[WhiteFideId "3512428"]
[BlackFideId "24651516"]
[WhiteElo "2477"]
[BlackElo "2669"]
[Result "0-1"]
[Round "03"]
[TimeControl "180+2"]
[Date "2023.02.07"]
[WhiteClock "0:00:07"]
[BlackClock "0:00:06"]

1. e4 {[%clk 0:03:00]}  e6 {[%clk 0:03:00]} 2. Nf3 {[%clk 0:03:00]}  d5 {[%clk 0:03:00]} 3. Nc3 {[%clk 0:03:00]}  Nf6 {[%clk 0:03:00]} 4. e5 {[%clk 0:03:00]}  Nfd7 {[%clk 0:03:01]} 5. d4 {[%clk 0:03:01]}  c5 {[%clk 0:03:01]} 6. Ne2 {[%clk 0:03:02]}  Nc6 {[%clk 0:03:01]} 7. c3 {[%clk 0:03:02]}  Be7 {[%clk 0:03:02]} 8. a3 {[%clk 0:03:00]}  O-O {[%clk 0:03:01]} 9. b4 {[%clk 0:02:56]}  cxd4 {[%clk 0:02:59]} 10. cxd4 {[%clk 0:02:57]}  f6 {[%clk 0:02:58]} 11. Nf4 {[%clk 0:02:50]}  Ndxe5 {[%clk 0:02:57]} 12. dxe5 {[%clk 0:02:50]}  fxe5 {[%clk 0:02:58]} 13. Ne2 {[%clk 0:02:48]}  e4 {[%clk 0:02:54]} 14. Nfd4 {[%clk 0:02:45]}  Nxd4 {[%clk 0:02:12]} 15. Nxd4 {[%clk 0:02:46]}  e5 {[%clk 0:02:13]} 16. Nb3 {[%clk 0:02:27]}  Qb6 {[%clk 0:02:07]} 17. Ra2 {[%clk 0:02:07]}  d4 {[%clk 0:01:53]} 18. Bc4+ {[%clk 0:02:00]}  Kh8 {[%clk 0:01:43]} 19. O-O {[%clk 0:02:00]}  Qg6 {[%clk 0:01:42]} 20. Re1 {[%clk 0:01:52]}  Bg4 {[%clk 0:01:27]} 21. Be2 {[%clk 0:01:21]}  Bf3 {[%clk 0:01:26]} 22. g3 {[%clk 0:01:20]}  Qe6 {[%clk 0:01:22]} 23. Bxf3 {[%clk 0:00:56]}  exf3 {[%clk 0:01:23]} 24. Re4 {[%clk 0:00:28]}  Rac8 {[%clk 0:01:17]} 25. Rb2 {[%clk 0:00:27]}  Qf5 {[%clk 0:00:48]} 26. Qe1 {[%clk 0:00:22]}  Bd6 {[%clk 0:00:39]} 27. Bd2 {[%clk 0:00:22]}  Rc7 {[%clk 0:00:35]} 28. Nc5 {[%clk 0:00:20]}  Bxc5 {[%clk 0:00:27]} 29. bxc5 {[%clk 0:00:21]}  Rxc5 {[%clk 0:00:28]} 30. Rxb7 {[%clk 0:00:19]}  Rc2 {[%clk 0:00:28]} 31. Rxe5 {[%clk 0:00:14]}  Qh3 {[%clk 0:00:29]} 32. Qf1 {[%clk 0:00:13]}  Qxf1+ {[%clk 0:00:29]} 33. Kxf1 {[%clk 0:00:14]}  Rxd2 {[%clk 0:00:30]} 34. Ke1 {[%clk 0:00:14]}  Ra2 {[%clk 0:00:27]} 35. Ree7 {[%clk 0:00:13]}  Rc8 {[%clk 0:00:16]} 36. Kd1 {[%clk 0:00:13]}  Rxf2 {[%clk 0:00:09]} 37. Rxg7 {[%clk 0:00:14]}  Rxh2 {[%clk 0:00:09]} 38. Rgf7 {[%clk 0:00:12]}  f2 {[%clk 0:00:09]} 39. Ke2 {[%clk 0:00:12]}  Re8+ {[%clk 0:00:09]} 40. Kd3 {[%clk 0:00:11]}  Kg8 {[%clk 0:00:06]} 41. Rf4 {[%clk 0:00:11]}  Rf8 {[%clk 0:00:05]} 42. Rxf8+ {[%clk 0:00:07]}  Kxf8 {[%clk 0:00:06]} 43. Rb1 {[%clk 0:00:08]}  Rh3 {[%clk 0:00:05]} 44. Rf1 {[%clk 0:00:05]}  Rxg3+ {[%clk 0:00:05]} 45. Ke4 {[%clk 0:00:05]}  Re3+ {[%clk 0:00:04]} 46. Kxd4 {[%clk 0:00:05]}  Rf3 {[%clk 0:00:03]} 47. Ke4 {[%clk 0:00:05]}  Rf7 {[%clk 0:00:04]} 48. Ke3 {[%clk 0:00:04]}  h5 {[%clk 0:00:05]} 49. Ke2 {[%clk 0:00:04]}  h4 {[%clk 0:00:05]} 50. Rh1 {[%clk 0:00:05]}  f1=Q+ {[%clk 0:00:05]} 51. Rxf1 {[%clk 0:00:05]}  Rxf1 {[%clk 0:00:06]} 52. Kxf1 {[%clk 0:00:06]}  Ke7 {[%clk 0:00:06]} 53. Kg2 {[%clk 0:00:07]}  Kd6 {[%clk 0:00:06]} 54. Kh3 {[%clk 0:00:08]}  Kc5 {[%clk 0:00:07]} 55. Kxh4 {[%clk 0:00:09]}  Kb5 {[%clk 0:00:08]} 56. Kg3 {[%clk 0:00:09]}  Ka4 {[%clk 0:00:09]} 57. Kf2 {[%clk 0:00:10]}  Kxa3 {[%clk 0:00:10]} 58. Ke3 {[%clk 0:00:10]}  a5 {[%clk 0:00:07]} 59. Kd4 {[%clk 0:00:07]}  Kb3 {[%clk 0:00:06]} 0-1


[Site "https://www.chess.com"]

[Event "Titled Tuesday Blitz February 07 Late 2023"]
[White "Paravyan, David"]
[Black "Goltsev, Dmitry"]
[WhiteFideId "4194985"]
[BlackFideId "24176710"]
[WhiteElo "2601"]
[BlackElo "2269"]
[Result "1-0"]
[Round "03"]
[TimeControl "180+2"]
[Date "2023.02.07"]
[WhiteClock "0:01:28"]
[BlackClock "0:00:35"]

1. Nf3 {[%clk 0:03:00]}  d5 {[%clk 0:02:59]} 2. g3 {[%clk 0:03:00]}  c6 {[%clk 0:03:00]} 3. Bg2 {[%clk 0:02:59]}  Nf6 {[%clk 0:03:01]} 4. O-O {[%clk 0:02:59]}  g6 {[%clk 0:03:02]} 5. b3 {[%clk 0:02:59]}  Bg7 {[%clk 0:03:03]} 6. Bb2 {[%clk 0:02:59]}  O-O {[%clk 0:03:04]} 7. c4 {[%clk 0:03:00]}  Ne8 {[%clk 0:03:04]} 8. Qc1 {[%clk 0:03:00]}  Nd7 {[%clk 0:03:03]} 9. cxd5 {[%clk 0:02:58]}  cxd5 {[%clk 0:03:04]} 10. Bxg7 {[%clk 0:02:57]}  Kxg7 {[%clk 0:03:04]} 11. Nc3 {[%clk 0:02:58]}  e6 {[%clk 0:03:04]} 12. Qb2 {[%clk 0:02:53]}  f6 {[%clk 0:03:03]} 13. e4 {[%clk 0:02:43]}  Nb6 {[%clk 0:03:00]} 14. exd5 {[%clk 0:02:33]}  Nxd5 {[%clk 0:03:00]} 15. Nxd5 {[%clk 0:02:29]}  Qxd5 {[%clk 0:02:59]} 16. Rfe1 {[%clk 0:02:29]}  Nd6 {[%clk 0:02:50]} 17. Nd4 {[%clk 0:02:27]}  Qa5 {[%clk 0:02:42]} 18. Nxe6+ {[%clk 0:02:19]}  Bxe6 {[%clk 0:02:42]} 19. Rxe6 {[%clk 0:02:20]}  Rad8 {[%clk 0:02:43]} 20. Rae1 {[%clk 0:02:15]}  Nf5 {[%clk 0:02:42]} 21. Qc3 {[%clk 0:01:57]}  Qxa2 {[%clk 0:02:14]} 22. g4 {[%clk 0:01:55]}  Nd4 {[%clk 0:02:06]} 23. Re7+ {[%clk 0:01:54]}  Kh8 {[%clk 0:01:50]} 24. Rxb7 {[%clk 0:01:44]}  Qc2 {[%clk 0:00:53]} 25. Qxc2 {[%clk 0:01:42]}  Nxc2 {[%clk 0:00:54]} 26. Ree7 {[%clk 0:01:42]}  Rfe8 {[%clk 0:00:52]} 27. Rxh7+ {[%clk 0:01:42]}  Kg8 {[%clk 0:00:52]} 28. Bc6 {[%clk 0:01:37]}  Re1+ {[%clk 0:00:47]} 29. Kg2 {[%clk 0:01:36]}  Rxd2 {[%clk 0:00:47]} 30. Rhg7+ {[%clk 0:01:34]}  Kh8 {[%clk 0:00:42]} 31. Rgc7 {[%clk 0:01:32]}  Rd8 {[%clk 0:00:35]} 32. Bd5 {[%clk 0:01:28]} 1-0


[Site "https://www.chess.com"]